[Event "*** Titled Tuesday Blitz"]
[Site "Chess.com"]
[Date "2021.03.30"]
[Round "7"]
[White "losersgame"]
[Black "NiranjanNavalgund"]
[Result "0-1"]
[WhiteElo "2336"]
[BlackElo "2506"]
[TimeControl "180+1"]
[EndTime "11:16:49 PDT"]
[Termination "NiranjanNavalgund won by resignation"]

1. d4 {[%clk 0:03:00.9]} 1... Nf6 {[%clk 0:02:51.2]} 2. c4 {[%clk 0:03:00.6]}
2... e6 {[%clk 0:02:49.2]} 3. Nc3 {[%clk 0:03:00.6]} 3... Bb4 {[%clk 0:02:47.4]}
4. e3 {[%clk 0:03:00.6]} 4... c5 {[%clk 0:02:44.7]} 5. Bd3 {[%clk 0:03:00.4]}
5... Nc6 {[%clk 0:02:44]} 6. Nf3 {[%clk 0:03:00.4]} 6... Bxc3+ {[%clk
0:02:43.8]} 7. bxc3 {[%clk 0:03:00.1]} 7... d6 {[%clk 0:02:41.5]} 8. e4 {[%clk
0:02:56.7]} 8... e5 {[%clk 0:02:38.9]} 9. d5 {[%clk 0:02:56.7]} 9... Ne7 {[%clk
0:02:27.5]} 10. O-O {[%clk 0:02:55.8]} 10... Ng6 {[%clk 0:01:31.9]} 11. g3
{[%clk 0:02:26.5]} 11... Bh3 {[%clk 0:01:29.7]} 12. Re1 {[%clk 0:02:26]} 12...
Qd7 {[%clk 0:01:21.4]} 13. Bf1 {[%clk 0:01:14.8]} 13... h5 {[%clk 0:01:19.7]}
14. Bxh3 {[%clk 0:01:07.6]} 14... Qxh3 {[%clk 0:01:20.6]} 15. Ng5 {[%clk
0:01:07.5]} 15... Qd7 {[%clk 0:01:19]} 16. h4 {[%clk 0:01:06.4]} 16... Ng4
{[%clk 0:01:17.5]} 17. f3 {[%clk 0:01:02.6]} 17... Nf6 {[%clk 0:01:17.7]} 18.
Kg2 {[%clk 0:01:01.1]} 18... Nh7 {[%clk 0:01:17.6]} 19. Nh3 {[%clk 0:00:57]}
19... f5 {[%clk 0:01:15.5]} 20. Bg5 {[%clk 0:00:38.2]} 20... O-O {[%clk
0:01:12.7]} 21. Qd3 {[%clk 0:00:33]} 21... f4 {[%clk 0:01:07]} 22. gxf4 {[%clk
0:00:17.4]} 22... Nxg5 {[%clk 0:01:06.1]} 23. fxg5 {[%clk 0:00:12.6]} 23...
Qxh3+ {[%clk 0:01:05.1]} 0-1

[Event "*** Titled Tuesday Blitz"]
[Site "Chess.com"]
[Date "2021.03.30"]
[Round "7"]
[White "ElCoachRene"]
[Black "Khnykin_Nikolay"]
[Result "1-0"]
[WhiteElo "2233"]
[BlackElo "2020"]
[TimeControl "180+1"]
[EndTime "11:16:54 PDT"]
[Termination "ElCoachRene won by checkmate"]

1. d4 {[%clk 0:02:57.9]} 1... f5 {[%clk 0:02:59.7]} 2. Bg5 {[%clk 0:02:57.5]}
2... g6 {[%clk 0:02:57.9]} 3. e3 {[%clk 0:02:55.7]} 3... Bg7 {[%clk 0:02:58.2]}
4. h4 {[%clk 0:02:55.4]} 4... Nf6 {[%clk 0:02:57.8]} 5. h5 {[%clk 0:02:54.3]}
5... Nxh5 {[%clk 0:02:55.8]} 6. Rxh5 {[%clk 0:02:53]} 6... gxh5 {[%clk
0:02:54.3]} 7. Qxh5+ {[%clk 0:02:52.4]} 7... Kf8 {[%clk 0:02:54.6]} 8. Bc4
{[%clk 0:02:44.7]} 8... Qe8 {[%clk 0:02:53]} 9. Qh4 {[%clk 0:02:39]} 9... e6
{[%clk 0:02:46.4]} 10. Nc3 {[%clk 0:02:36.2]} 10... d5 {[%clk 0:02:44]} 11. Be2
{[%clk 0:02:33.8]} 11... h6 {[%clk 0:02:43.5]} 12. Bf6 {[%clk 0:02:29.3]} 12...
Qg6 {[%clk 0:02:40.7]} 13. Be7+ {[%clk 0:02:12.3]} 13... Kg8 {[%clk 0:02:37.4]}
14. Bh5 {[%clk 0:02:08]} 14... Qxg2 {[%clk 0:02:35.9]} 15. O-O-O {[%clk
0:02:06.2]} 15... Nc6 {[%clk 0:02:35.3]} 16. Nf3 {[%clk 0:02:01.8]} 16... e5
{[%clk 0:02:08.4]} 17. Rg1 {[%clk 0:01:55.8]} 17... Qxg1+ {[%clk 0:02:05.9]} 18.
Nxg1 {[%clk 0:01:54.2]} 18... Be6 {[%clk 0:02:05.1]} 19. Bf6 {[%clk 0:01:52.5]}
19... exd4 {[%clk 0:01:50.5]} 20. exd4 {[%clk 0:01:48.8]} 20... Bf7 {[%clk
0:01:38.3]} 21. Bf3 {[%clk 0:01:43.2]} 21... Bxf6 {[%clk 0:01:31.9]} 22. Qxf6
{[%clk 0:01:40.7]} 22... Re8 {[%clk 0:01:31.3]} 23. Nh3 {[%clk 0:01:31.3]} 23...
Rh7 {[%clk 0:01:24.6]} 24. Bxd5 {[%clk 0:01:26.8]} 24... Bxd5 {[%clk 0:01:23.4]}
25. Nxd5 {[%clk 0:01:25.7]} 25... Rd7 {[%clk 0:01:11.6]} 26. Qg6+ {[%clk
0:01:22.3]} 26... Kf8 {[%clk 0:01:09.7]} 27. Qxf5+ {[%clk 0:01:17.1]} 27... Rf7
{[%clk 0:01:07.9]} 28. Qh5 {[%clk 0:01:03.5]} 28... Nxd4 {[%clk 0:01:03.2]} 29.
Qxh6+ {[%clk 0:01:00.6]} 29... Kg8 {[%clk 0:00:56]} 30. Nf6+ {[%clk 0:00:57.8]}
30... Rxf6 {[%clk 0:00:52.2]} 31. Qxf6 {[%clk 0:00:56.7]} 31... Ne2+ {[%clk
0:00:45.2]} 32. Kd2 {[%clk 0:00:53.3]} 32... c5 {[%clk 0:00:44.8]} 33. Ng5
{[%clk 0:00:49.1]} 33... c4 {[%clk 0:00:45.7]} 34. Qf7+ {[%clk 0:00:47.8]} 34...
Kh8 {[%clk 0:00:45.3]} 35. Qh7# {[%clk 0:00:47.5]} 1-0

[Event "*** Titled Tuesday Blitz"]
[Site "Chess.com"]
[Date "2021.03.30"]
[Round "7"]
[White "SantoBlue"]
[Black "Nikolakis2014"]
[Result "1-0"]
[WhiteElo "2808"]
[BlackElo "2609"]
[TimeControl "180+1"]
[EndTime "11:16:59 PDT"]
[Termination "SantoBlue won by resignation"]

1. e4 {[%clk 0:03:00.9]} 1... c5 {[%clk 0:03:00.1]} 2. Nf3 {[%clk 0:03:00.5]}
2... d6 {[%clk 0:03:00.5]} 3. d4 {[%clk 0:03:00.1]} 3... cxd4 {[%clk 0:03:00.8]}
4. Nxd4 {[%clk 0:03:00.6]} 4... Nf6 {[%clk 0:03:01.1]} 5. Nc3 {[%clk 0:03:00.1]}
5... a6 {[%clk 0:03:01.4]} 6. a3 {[%clk 0:02:59.8]} 6... e6 {[%clk 0:03:01.2]}
7. g4 {[%clk 0:02:59.3]} 7... b5 {[%clk 0:03:01.3]} 8. g5 {[%clk 0:02:58.5]}
8... Nfd7 {[%clk 0:03:00.9]} 9. h4 {[%clk 0:02:57.7]} 9... Bb7 {[%clk 0:03:01]}
10. Bg2 {[%clk 0:02:56.6]} 10... Be7 {[%clk 0:02:57.5]} 11. Be3 {[%clk
0:02:52.5]} 11... Ne5 {[%clk 0:02:57.5]} 12. b3 {[%clk 0:02:47.4]} 12... Nbd7
{[%clk 0:02:55.8]} 13. f4 {[%clk 0:02:45.9]} 13... Rc8 {[%clk 0:02:55.6]} 14.
Nce2 {[%clk 0:02:25.3]} 14... Ng4 {[%clk 0:02:50.4]} 15. Bg1 {[%clk 0:02:25.1]}
15... h5 {[%clk 0:02:46]} 16. Qd2 {[%clk 0:02:21.4]} 16... g6 {[%clk 0:02:37.5]}
17. Rh3 {[%clk 0:02:17.4]} 17... e5 {[%clk 0:02:33.5]} 18. Nf3 {[%clk
0:02:01.7]} 18... exf4 {[%clk 0:02:32.7]} 19. Nxf4 {[%clk 0:01:58.5]} 19... Bxe4
{[%clk 0:02:26.2]} 20. Qd4 {[%clk 0:01:55.1]} 20... O-O {[%clk 0:02:08.3]} 21.
Qxe4 {[%clk 0:01:53.1]} 21... Bxg5 {[%clk 0:02:03.1]} 22. Nxg5 {[%clk
0:01:38.5]} 22... Re8 {[%clk 0:02:03.1]} 23. Nfe6 {[%clk 0:01:35.2]} 23... Qf6
{[%clk 0:02:01.5]} 24. Bd4 {[%clk 0:01:32.8]} 24... Nde5 {[%clk 0:02:00.1]} 25.
Rf3 {[%clk 0:01:08.8]} 25... Nxf3+ {[%clk 0:01:52.1]} 26. Bxf3 {[%clk
0:01:07.7]} 26... Qxe6 {[%clk 0:01:03.1]} 27. Nxe6 {[%clk 0:01:05.1]} 27... Rxe6
{[%clk 0:01:03.3]} 28. Qxe6 {[%clk 0:01:03.2]} 28... fxe6 {[%clk 0:01:02.2]} 29.
O-O-O {[%clk 0:01:03.1]} 29... Nh6 {[%clk 0:00:43.8]} 30. Bb7 {[%clk 0:01:00.2]}
30... Rb8 {[%clk 0:00:43.9]} 31. Be4 {[%clk 0:00:55.5]} 31... Kf7 {[%clk
0:00:40.2]} 32. Be3 {[%clk 0:00:54.8]} 32... Nf5 {[%clk 0:00:40.3]} 33. Bxf5
{[%clk 0:00:54.5]} 33... gxf5 {[%clk 0:00:40.7]} 34. Rxd6 {[%clk 0:00:54.9]}
34... Kf6 {[%clk 0:00:40.7]} 35. Rxa6 {[%clk 0:00:53.2]} 1-0

[Event "*** Titled Tuesday Blitz"]
[Site "Chess.com"]
[Date "2021.03.30"]
[Round "7"]
[White "mishanick"]
[Black "Mihnea2017"]
[Result "1-0"]
[WhiteElo "2938"]
[BlackElo "2465"]
[TimeControl "180+1"]
[EndTime "11:16:59 PDT"]
[Termination "mishanick won by resignation"]

1. c4 {[%clk 0:03:00.9]} 1... e5 {[%clk 0:02:59.7]} 2. Nc3 {[%clk 0:03:00.9]}
2... Nf6 {[%clk 0:02:59.2]} 3. Nf3 {[%clk 0:03:01.3]} 3... Nc6 {[%clk
0:02:58.9]} 4. e4 {[%clk 0:02:59.4]} 4... Bc5 {[%clk 0:02:56.9]} 5. Nxe5 {[%clk
0:02:55.9]} 5... Nxe5 {[%clk 0:02:55.2]} 6. d4 {[%clk 0:02:56.1]} 6... Bb4
{[%clk 0:02:51.2]} 7. dxe5 {[%clk 0:02:55]} 7... Nxe4 {[%clk 0:02:50.6]} 8. Qf3
{[%clk 0:02:55.2]} 8... Nxc3 {[%clk 0:02:40.7]} 9. bxc3 {[%clk 0:02:56.1]} 9...
Bc5 {[%clk 0:02:40.5]} 10. Qg3 {[%clk 0:02:53.9]} 10... g6 {[%clk 0:02:28.6]}
11. Bd3 {[%clk 0:02:45.2]} 11... d6 {[%clk 0:02:25.9]} 12. Bg5 {[%clk
0:02:41.8]} 12... Qd7 {[%clk 0:02:25.3]} 13. O-O {[%clk 0:02:40.4]} 13... Qg4
{[%clk 0:02:21.5]} 14. exd6 {[%clk 0:02:26.5]} 14... Qxg3 {[%clk 0:02:12.9]} 15.
hxg3 {[%clk 0:02:26.9]} 15... Bxd6 {[%clk 0:02:10.8]} 16. Rfe1+ {[%clk
0:02:27.1]} 16... Kd7 {[%clk 0:02:08.3]} 17. Rad1 {[%clk 0:01:47.2]} 17... Re8
{[%clk 0:01:56]} 18. Rxe8 {[%clk 0:01:40.9]} 18... Kxe8 {[%clk 0:01:56]} 19. c5
{[%clk 0:01:41.6]} 19... Be7 {[%clk 0:01:46.4]} 20. Bf4 {[%clk 0:01:40.9]} 20...
c6 {[%clk 0:01:44.6]} 21. Be3 {[%clk 0:01:37.2]} 21... Be6 {[%clk 0:01:44.2]}
22. Rb1 {[%clk 0:01:36.6]} 22... Rb8 {[%clk 0:01:13.2]} 23. a4 {[%clk
0:01:34.3]} 23... Bf6 {[%clk 0:00:45.9]} 24. Be4 {[%clk 0:01:23.2]} 24... Bd5
{[%clk 0:00:19.3]} 25. Bxd5 {[%clk 0:01:16]} 25... cxd5 {[%clk 0:00:20.2]} 26.
a5 {[%clk 0:01:12.1]} 26... Bxc3 {[%clk 0:00:17.3]} 27. a6 {[%clk 0:01:12.3]}
27... b6 {[%clk 0:00:15.6]} 28. cxb6 {[%clk 0:01:11.6]} 28... axb6 {[%clk
0:00:15.7]} 29. Rxb6 {[%clk 0:01:12.2]} 29... Ra8 {[%clk 0:00:13.1]} 30. a7
{[%clk 0:01:11.1]} 30... d4 {[%clk 0:00:12.4]} 31. Rb8+ {[%clk 0:01:10.8]} 1-0

[Event "*** Titled Tuesday Blitz"]
[Site "Chess.com"]
[Date "2021.03.30"]
[Round "7"]
[White "Escanor89"]
[Black "superchess02"]
[Result "0-1"]
[WhiteElo "2583"]
[BlackElo "2816"]
[TimeControl "180+1"]
[EndTime "11:17:00 PDT"]
[Termination "superchess02 won by resignation"]

1. Nf3 {[%clk 0:03:00.9]} 1... a6 {[%clk 0:03:00.3]} 2. e4 {[%clk 0:02:58.2]}
2... b5 {[%clk 0:02:59.9]} 3. d4 {[%clk 0:02:58.2]} 3... Bb7 {[%clk 0:02:59.9]}
4. Bd3 {[%clk 0:02:58.3]} 4... e6 {[%clk 0:02:59.5]} 5. O-O {[%clk 0:02:55]}
5... c5 {[%clk 0:02:59.8]} 6. c3 {[%clk 0:02:54.4]} 6... Nf6 {[%clk 0:02:59.2]}
7. Qe2 {[%clk 0:02:50.7]} 7... d6 {[%clk 0:02:56.8]} 8. Re1 {[%clk 0:02:43.8]}
8... Be7 {[%clk 0:02:55.3]} 9. Nbd2 {[%clk 0:02:41.3]} 9... Nbd7 {[%clk
0:02:53.4]} 10. Nf1 {[%clk 0:02:39.5]} 10... e5 {[%clk 0:02:48.8]} 11. Ng3
{[%clk 0:02:37.6]} 11... O-O {[%clk 0:02:44.8]} 12. a4 {[%clk 0:02:30.8]} 12...
b4 {[%clk 0:02:40.7]} 13. Nf5 {[%clk 0:02:15.6]} 13... Re8 {[%clk 0:02:32.7]}
14. dxe5 {[%clk 0:01:44.9]} 14... dxe5 {[%clk 0:02:28.5]} 15. Nxe7+ {[%clk
0:01:33.8]} 15... Qxe7 {[%clk 0:02:27.3]} 16. Nh4 {[%clk 0:01:30.3]} 16... g6
{[%clk 0:02:17.2]} 17. Bg5 {[%clk 0:01:28.2]} 17... Qf8 {[%clk 0:02:08]} 18. Qe3
{[%clk 0:01:10.5]} 18... c4 {[%clk 0:02:07.6]} 19. Bxc4 {[%clk 0:01:03.1]} 19...
Nxe4 {[%clk 0:02:07.2]} 20. Bh6 {[%clk 0:01:02.3]} 20... Qe7 {[%clk 0:01:56]}
21. Nf3 {[%clk 0:00:53.1]} 21... bxc3 {[%clk 0:01:56.1]} 22. bxc3 {[%clk
0:00:51.8]} 22... Rac8 {[%clk 0:01:56.1]} 23. Rab1 {[%clk 0:00:42.3]} 23... Ndf6
{[%clk 0:01:46.7]} 24. Ba2 {[%clk 0:00:26.1]} 24... Ng4 {[%clk 0:01:41.3]} 25.
Qb6 {[%clk 0:00:20.7]} 25... Nxc3 {[%clk 0:01:34.1]} 26. Qxb7 {[%clk 0:00:12.6]}
26... Nxb1 {[%clk 0:01:34.1]} 27. Qxb1 {[%clk 0:00:06.7]} 27... Nxh6 {[%clk
0:01:33.5]} 28. Rxe5 {[%clk 0:00:05.5]} 28... Qf6 {[%clk 0:01:29.4]} 29. Rxe8+
{[%clk 0:00:05.3]} 29... Rxe8 {[%clk 0:01:30.3]} 30. h3 {[%clk 0:00:04.8]} 30...
Nf5 {[%clk 0:01:26.2]} 31. Qb7 {[%clk 0:00:04.6]} 31... Qa1+ {[%clk 0:01:20.1]}
0-1

[Event "*** Titled Tuesday Blitz"]
[Site "Chess.com"]
[Date "2021.03.30"]
[Round "7"]
[White "DonPreuss"]
[Black "zala02"]
[Result "1-0"]
[WhiteElo "2271"]
[BlackElo "2136"]
[TimeControl "180+1"]
[EndTime "11:17:06 PDT"]
[Termination "DonPreuss won by checkmate"]

1. d4 {[%clk 0:03:00.9]} 1... d5 {[%clk 0:02:59.6]} 2. e4 {[%clk 0:03:00.6]}
2... dxe4 {[%clk 0:02:58.9]} 3. Nc3 {[%clk 0:03:01.1]} 3... Nf6 {[%clk
0:02:57.7]} 4. f3 {[%clk 0:03:01.4]} 4... exf3 {[%clk 0:02:56.3]} 5. Nxf3 {[%clk
0:03:02.3]} 5... e6 {[%clk 0:02:55.2]} 6. Bd3 {[%clk 0:03:02.2]} 6... Be7 {[%clk
0:02:53.5]} 7. O-O {[%clk 0:03:02.7]} 7... c6 {[%clk 0:02:51.5]} 8. Qe1 {[%clk
0:03:03.2]} 8... Nbd7 {[%clk 0:02:50.9]} 9. Bg5 {[%clk 0:02:48.3]} 9... Qc7
{[%clk 0:02:46]} 10. Ne5 {[%clk 0:02:43.3]} 10... h6 {[%clk 0:02:43.1]} 11. Nxf7
{[%clk 0:01:50.7]} 11... hxg5 {[%clk 0:02:31.8]} 12. Nxh8 {[%clk 0:01:48.3]}
12... Nf8 {[%clk 0:02:25.7]} 13. Ng6 {[%clk 0:01:37.2]} 13... Bb4 {[%clk
0:02:18.7]} 14. Nxf8 {[%clk 0:01:35.6]} 14... Kxf8 {[%clk 0:02:17.2]} 15. Qe5
{[%clk 0:01:34.4]} 15... Qb6 {[%clk 0:02:12.5]} 16. Rxf6+ {[%clk 0:01:30.7]}
16... gxf6 {[%clk 0:02:07.4]} 17. Qxf6+ {[%clk 0:01:30.2]} 17... Ke8 {[%clk
0:02:06.7]} 18. Bg6+ {[%clk 0:00:53.1]} 18... Kd7 {[%clk 0:02:06.1]} 19. Na4
{[%clk 0:00:50.5]} 19... Be7 {[%clk 0:01:43.5]} 20. Nxb6+ {[%clk 0:00:47.6]}
20... axb6 {[%clk 0:01:43.6]} 21. Qf7 {[%clk 0:00:44.3]} 21... Kd6 {[%clk
0:01:40.6]} 22. c4 {[%clk 0:00:40.4]} 22... Ra5 {[%clk 0:01:32.5]} 23. b4 {[%clk
0:00:39.5]} 23... Ra3 {[%clk 0:01:29.2]} 24. c5+ {[%clk 0:00:39.5]} 24... Kd7
{[%clk 0:01:28.9]} 25. Re1 {[%clk 0:00:38]} 25... Kd8 {[%clk 0:01:26.7]} 26.
Qe8+ {[%clk 0:00:37.6]} 26... Kc7 {[%clk 0:01:26]} 27. Qxe7+ {[%clk 0:00:37.7]}
27... Kb8 {[%clk 0:01:26.2]} 28. Qd6+ {[%clk 0:00:35.5]} 28... Ka7 {[%clk
0:01:25.8]} 29. Qc7 {[%clk 0:00:35.5]} 29... g4 {[%clk 0:01:11.1]} 30. cxb6+
{[%clk 0:00:29.4]} 30... Ka6 {[%clk 0:01:07.9]} 31. Qxc8 {[%clk 0:00:29.7]}
31... g3 {[%clk 0:01:07.4]} 32. Qa8+ {[%clk 0:00:28]} 32... Kb5 {[%clk
0:01:07.5]} 33. Qxa3 {[%clk 0:00:27.5]} 33... e5 {[%clk 0:01:07.1]} 34. Bd3+
{[%clk 0:00:26.4]} 34... Kxb6 {[%clk 0:00:59.2]} 35. Qa5# {[%clk 0:00:26.7]} 1-0

[Event "*** Titled Tuesday Blitz"]
[Site "Chess.com"]
[Date "2021.03.30"]
[Round "7"]
[White "LileKoridze"]
[Black "NikolaN98"]
[Result "0-1"]
[WhiteElo "2504"]
[BlackElo "2668"]
[TimeControl "180+1"]
[EndTime "11:17:08 PDT"]
[Termination "NikolaN98 won by resignation"]

1. d4 {[%clk 0:03:00.9]} 1... e6 {[%clk 0:02:56.5]} 2. c4 {[%clk 0:03:00.5]}
2... f5 {[%clk 0:02:56.5]} 3. Nf3 {[%clk 0:02:58]} 3... Nf6 {[%clk 0:02:56.1]}
4. g3 {[%clk 0:02:56]} 4... Be7 {[%clk 0:02:56.3]} 5. Bg2 {[%clk 0:02:53]} 5...
O-O {[%clk 0:02:56.8]} 6. O-O {[%clk 0:02:52.3]} 6... d6 {[%clk 0:02:57.2]} 7.
Nc3 {[%clk 0:02:51.2]} 7... a5 {[%clk 0:02:57.4]} 8. Qc2 {[%clk 0:02:48.6]} 8...
Nc6 {[%clk 0:02:57.2]} 9. Rd1 {[%clk 0:02:48.2]} 9... Qe8 {[%clk 0:02:47.7]} 10.
e4 {[%clk 0:02:48]} 10... e5 {[%clk 0:02:36.5]} 11. dxe5 {[%clk 0:02:46.3]}
11... dxe5 {[%clk 0:02:36.1]} 12. exf5 {[%clk 0:02:46.4]} 12... Qh5 {[%clk
0:02:35.2]} 13. Nd5 {[%clk 0:02:19.6]} 13... Bc5 {[%clk 0:02:20.3]} 14. Nxc7
{[%clk 0:02:05.7]} 14... Bxf5 {[%clk 0:02:19.2]} 15. Qb3 {[%clk 0:01:47.1]}
15... Rab8 {[%clk 0:02:03.6]} 16. Be3 {[%clk 0:01:44.7]} 16... Bxe3 {[%clk
0:01:36.7]} 17. Qxe3 {[%clk 0:01:44.3]} 17... e4 {[%clk 0:01:34.9]} 18. Nh4
{[%clk 0:01:25.2]} 18... Bg4 {[%clk 0:01:34.3]} 19. Rd2 {[%clk 0:01:15.8]} 19...
g5 {[%clk 0:01:32.2]} 20. h3 {[%clk 0:01:01.3]} 20... Bc8 {[%clk 0:01:31.3]} 21.
Bxe4 {[%clk 0:00:54.1]} 21... gxh4 {[%clk 0:01:22.4]} 22. g4 {[%clk 0:00:45.5]}
22... Qe5 {[%clk 0:01:18.6]} 23. Nd5 {[%clk 0:00:43.2]} 23... Nxe4 {[%clk
0:01:16.2]} 24. Re2 {[%clk 0:00:36.8]} 24... Nd4 {[%clk 0:01:11.8]} 25. Ne7+
{[%clk 0:00:25.7]} 25... Kh8 {[%clk 0:00:49.6]} 26. Ng6+ {[%clk 0:00:24.4]}
26... hxg6 {[%clk 0:00:49.1]} 27. Qh6+ {[%clk 0:00:24.4]} 27... Kg8 {[%clk
0:00:49.6]} 28. Qxg6+ {[%clk 0:00:24.9]} 28... Qg7 {[%clk 0:00:49.5]} 29. Qxe4
{[%clk 0:00:25.4]} 29... Nxe2+ {[%clk 0:00:48.5]} 30. Qxe2 {[%clk 0:00:26.3]}
30... Bd7 {[%clk 0:00:46.4]} 0-1

[Event "*** Titled Tuesday Blitz"]
[Site "Chess.com"]
[Date "2021.03.30"]
[Round "7"]
[White "rynos0411"]
[Black "szachuspl"]
[Result "0-1"]
[WhiteElo "2410"]
[BlackElo "2547"]
[TimeControl "180+1"]
[EndTime "11:17:08 PDT"]
[Termination "szachuspl won by resignation"]

1. e4 {[%clk 0:02:57.6]} 1... c5 {[%clk 0:02:59.8]} 2. c3 {[%clk 0:02:57.1]}
2... Nf6 {[%clk 0:02:58.9]} 3. e5 {[%clk 0:02:56.7]} 3... Nd5 {[%clk 0:02:59.2]}
4. d4 {[%clk 0:02:56.4]} 4... cxd4 {[%clk 0:02:59.6]} 5. Nf3 {[%clk 0:02:57]}
5... d6 {[%clk 0:02:59.2]} 6. Nxd4 {[%clk 0:02:54.9]} 6... dxe5 {[%clk
0:02:54.2]} 7. Nf3 {[%clk 0:02:54.1]} 7... Nc6 {[%clk 0:02:52.3]} 8. Bb5 {[%clk
0:02:53.7]} 8... f6 {[%clk 0:02:51.3]} 9. O-O {[%clk 0:02:52.1]} 9... e6 {[%clk
0:02:48.6]} 10. Qb3 {[%clk 0:02:20.6]} 10... Qb6 {[%clk 0:02:42.5]} 11. c4
{[%clk 0:02:18.8]} 11... Nf4 {[%clk 0:02:34.2]} 12. Be3 {[%clk 0:02:11.6]} 12...
Bc5 {[%clk 0:02:33.8]} 13. Nbd2 {[%clk 0:01:56.2]} 13... O-O {[%clk 0:02:24.9]}
14. Bxc5 {[%clk 0:01:44.2]} 14... Qxc5 {[%clk 0:02:24.1]} 15. Ne4 {[%clk
0:01:45.1]} 15... Qe7 {[%clk 0:02:19.1]} 16. Bxc6 {[%clk 0:01:31.8]} 16... bxc6
{[%clk 0:02:18.9]} 17. Rfe1 {[%clk 0:01:23.3]} 17... c5 {[%clk 0:02:11.6]} 18.
Qe3 {[%clk 0:01:19.3]} 18... Bb7 {[%clk 0:02:07.1]} 19. Nxc5 {[%clk 0:01:05.2]}
19... Bxf3 {[%clk 0:02:06.6]} 20. gxf3 {[%clk 0:01:06.1]} 20... Rac8 {[%clk
0:02:04.4]} 21. b4 {[%clk 0:01:02.6]} 21... Qf7 {[%clk 0:01:57.9]} 22. Kh1
{[%clk 0:01:01.5]} 22... Rfd8 {[%clk 0:01:56.3]} 23. Rg1 {[%clk 0:00:59.7]}
23... Rd4 {[%clk 0:01:52.3]} 24. Rac1 {[%clk 0:00:56.2]} 24... g5 {[%clk
0:01:50]} 25. Ne4 {[%clk 0:00:48.2]} 25... h6 {[%clk 0:01:42.5]} 26. c5 {[%clk
0:00:44.3]} 26... Rd3 {[%clk 0:01:30.8]} 27. Qe1 {[%clk 0:00:35.8]} 27... Rc7
{[%clk 0:01:23.3]} 28. Rg3 {[%clk 0:00:34.3]} 28... Kg7 {[%clk 0:01:12.8]} 29.
Nd6 {[%clk 0:00:31.7]} 29... Qd7 {[%clk 0:01:12.1]} 30. Qe4 {[%clk 0:00:29.7]}
30... Rxd6 {[%clk 0:01:05.9]} 31. h4 {[%clk 0:00:21.6]} 31... Rd1+ {[%clk
0:01:01]} 32. Rxd1 {[%clk 0:00:21.2]} 32... Qxd1+ {[%clk 0:01:01.9]} 33. Kh2
{[%clk 0:00:21.8]} 33... Qd5 {[%clk 0:00:57.9]} 0-1

[Event "*** Titled Tuesday Blitz"]
[Site "Chess.com"]
[Date "2021.03.30"]
[Round "7"]
[White "PotapovaM"]
[Black "Borsuk_Konstantin"]
[Result "0-1"]
[WhiteElo "2492"]
[BlackElo "2661"]
[TimeControl "180+1"]
[EndTime "11:17:10 PDT"]
[Termination "Borsuk_Konstantin won by resignation"]

1. Nf3 {[%clk 0:02:59.7]} 1... Nf6 {[%clk 0:02:58.3]} 2. g3 {[%clk 0:02:59.1]}
2... g6 {[%clk 0:02:58.2]} 3. Bg2 {[%clk 0:02:59]} 3... Bg7 {[%clk 0:02:58.8]}
4. O-O {[%clk 0:02:59.6]} 4... O-O {[%clk 0:02:59.4]} 5. d4 {[%clk 0:02:59.6]}
5... b6 {[%clk 0:02:56.5]} 6. b3 {[%clk 0:02:58.9]} 6... Bb7 {[%clk 0:02:56.2]}
7. Bb2 {[%clk 0:02:59.5]} 7... d6 {[%clk 0:02:53.5]} 8. c4 {[%clk 0:02:54.5]}
8... e6 {[%clk 0:02:53]} 9. Nc3 {[%clk 0:02:53]} 9... Ne4 {[%clk 0:02:52.3]} 10.
Qd3 {[%clk 0:02:32.5]} 10... f5 {[%clk 0:02:34]} 11. d5 {[%clk 0:02:11.2]} 11...
Nxc3 {[%clk 0:02:28.6]} 12. Bxc3 {[%clk 0:02:10.3]} 12... Bxc3 {[%clk
0:02:28.6]} 13. Qxc3 {[%clk 0:02:10.1]} 13... e5 {[%clk 0:02:29.2]} 14. h4
{[%clk 0:01:59.4]} 14... h6 {[%clk 0:02:26.7]} 15. e4 {[%clk 0:01:43.8]} 15...
f4 {[%clk 0:02:16.9]} 16. g4 {[%clk 0:01:43.8]} 16... Bc8 {[%clk 0:02:11.3]} 17.
g5 {[%clk 0:01:19.4]} 17... Bg4 {[%clk 0:02:10.1]} 18. gxh6 {[%clk 0:00:54.3]}
18... Bxf3 {[%clk 0:02:09.8]} 19. Bxf3 {[%clk 0:00:50]} 19... Qxh4 {[%clk
0:02:09.6]} 20. Rfe1 {[%clk 0:00:50.6]} 20... g5 {[%clk 0:02:01.5]} 21. h7+
{[%clk 0:00:38.7]} 21... Kh8 {[%clk 0:01:58.7]} 22. Bg2 {[%clk 0:00:30.6]} 22...
g4 {[%clk 0:01:56.9]} 23. f3 {[%clk 0:00:29.6]} 23... Nd7 {[%clk 0:01:49.5]} 24.
Kf1 {[%clk 0:00:26.6]} 24... Nf6 {[%clk 0:01:46.5]} 25. Ke2 {[%clk 0:00:25.9]}
25... Qh2 {[%clk 0:01:34.5]} 26. Kf2 {[%clk 0:00:19.3]} 26... Qg3+ {[%clk
0:01:31.4]} 27. Kf1 {[%clk 0:00:19.4]} 27... Rf7 {[%clk 0:01:28.6]} 28. b4
{[%clk 0:00:16.8]} 28... Rxh7 {[%clk 0:01:27.7]} 29. c5 {[%clk 0:00:15]} 29...
Rh2 {[%clk 0:01:26.7]} 30. Re2 {[%clk 0:00:14.2]} 30... Nxe4 {[%clk 0:01:23.6]}
31. Qb2 {[%clk 0:00:10.3]} 31... gxf3 {[%clk 0:01:22.5]} 32. cxd6 {[%clk
0:00:05.9]} 32... fxg2+ {[%clk 0:01:19.9]} 33. Rxg2 {[%clk 0:00:03.4]} 33...
Rh1+ {[%clk 0:01:19.7]} 34. Ke2 {[%clk 0:00:03.2]} 34... Qxg2+ {[%clk
0:01:19.6]} 0-1